fUSD/lending_fUSD_20250313
["ID","MTS","AMOUNT","RATE_DAILY","PERIOD"]
[356102188,1741908633010,-500.0,0.00025191,3]
[356102190,1741908633019,-200.0,0.00025197,2]
[356102192,1741908633029,-200.0,0.00025197,2]
[356102194,1741908633042,-1598.98,0.00025197,2]
[356102196,1741908633051,-9967.68,0.00025197,2]
[356102198,1741908633060,-250.0,0.00025197,2]
[356102200,1741908633071,-858.78360817,0.00025198,2]
[356102202,1741908633080,-1000.0,0.00025209,2]
[356102204,1741908633090,-400.28,0.0002521,30]
[356102205,1741908633099,-843.71,0.00025218,3]
[356102207,1741908633109,-923.25,0.00025218,3]
[356102209,1741908633119,-685.19,0.00025218,3]
[356102211,1741908633128,-500.0,0.00025218,3]
[356102213,1741908633137,-1619.44774361,0.0002522,2]
[356102215,1741908633147,-914.85,0.00025235,120]
[356102217,1741908633158,-843.71,0.00025246,3]
[356102219,1741908633167,-923.25,0.00025246,3]
[356102220,1741908633177,-685.19,0.00025246,3]
[356102222,1741908633186,-218.38244704,0.00025246,3]
[356102224,1741908633195,-200.0,0.00025249,2]
[356102226,1741908633204,-843.71,0.00025273,3]
[356102228,1741908633213,-923.25,0.00025273,3]
[356102230,1741908633222,-685.19,0.00025273,3]
[356102232,1741908633231,-843.71,0.00025301,3]
[356102234,1741908633240,-923.25,0.00025301,3]
[356102235,1741908633249,-685.19,0.00025301,3]
[356102237,1741908633258,-843.71,0.00025328,3]
[356102239,1741908633268,-923.25,0.00025328,3]
[356102241,1741908633277,-685.19,0.00025328,3]
[356102243,1741908633286,-858.78360817,0.00025339,2]
[356102245,1741908633295,-159.66,0.00025348,2]
[356102247,1741908633305,-843.71,0.00025355,3]
[356102249,1741908633315,-923.25,0.00025355,3]
[356102251,1741908633324,-685.19,0.00025355,3]
[356102253,1741908633333,-1619.44774361,0.0002538,2]
[356102254,1741908633343,-843.71,0.00025383,3]
[356102256,1741908633352,-923.25,0.00025383,3]
[356102258,1741908633362,-685.19,0.00025383,3]
[356102260,1741908633374,-843.71,0.0002541,3]
[356102262,1741908633384,-923.25,0.0002541,3]
[356102264,1741908633393,-685.19,0.0002541,3]
[356102266,1741908633402,-843.71,0.00025438,3]
[356102268,1741908633411,-923.25,0.00025438,3]
[356102269,1741908633421,-685.19,0.00025438,3]
[356102271,1741908633430,-843.71,0.00025465,3]
[356102273,1741908633441,-923.25,0.00025465,3]
[356102275,1741908633450,-685.19,0.00025465,3]
[356102277,1741908633459,-858.78360817,0.00025479,2]
[356102279,1741908633469,-843.71,0.00025492,3]
[356102281,1741908633479,-923.25,0.00025492,3]
[356102283,1741908633489,-685.19,0.00025492,3]
[356102285,1741908633499,-300.0,0.000255,9]
[356102287,1741908633508,-159.66,0.00025507,2]
[356102288,1741908633517,-843.71,0.0002552,3]
[356102290,1741908633527,-923.25,0.0002552,3]
[356102292,1741908633536,-685.19,0.0002552,3]
[356102294,1741908633546,-1619.44774361,0.0002554,2]
[356102296,1741908633555,-843.71,0.00025547,3]
[356102298,1741908633566,-923.25,0.00025547,3]
[356102300,1741908633575,-685.19,0.00025547,3]
[356102301,1741908633585,-843.71,0.00025575,3]
[356102303,1741908633594,-923.25,0.00025575,3]
[356102305,1741908633604,-685.19,0.00025575,3]
[356102307,1741908633613,-600.0,0.000256,9]
[356102309,1741908633623,-843.71,0.00025602,3]
[356102311,1741908633632,-923.25,0.00025602,3]
[356102313,1741908633642,-685.19,0.00025602,3]
[356102315,1741908633652,-858.78360817,0.0002562,2]
[356102317,1741908633661,-843.80169819,0.00025629,3]
[356102318,1741908633671,-923.30018825,0.00025629,3]
[356102320,1741908633680,-685.33883313,0.00025629,3]
[356102322,1741908633689,-1414.35120773,0.00025632,2]
[356102324,1741908633699,-1043.83,0.00025642,2]
[356102326,1741908633708,-159.66,0.00025665,2]
[356102328,1741908633717,-1000.0,0.000257,9]
[356102330,1741908633727,-1619.44774361,0.000257,2]
[356102332,1741908633736,-150.0,0.00025716,2]
[356102334,1741908633745,-858.78360817,0.0002576,2]
[356102335,1741908633754,-1300.0,0.000258,9]
[356102337,1741908633764,-823.0,0.0002582,2]
[356102339,1741908633773,-159.66,0.00025824,2]
[356102341,1741908633782,-1619.44774361,0.0002586,2]
[356102343,1741908633792,-1700.0,0.000259,9]
[356102345,1741908633801,-858.78360817,0.00025901,2]
[356102347,1741908633811,-159.66,0.00025982,2]
[356102349,1741908633820,-197.18784,0.00026,36]
[356102351,1741908633830,-437.78,0.00026018,2]
[356102352,1741908633839,-300.0,0.00026018,2]
[356102354,1741908633849,-1619.44774361,0.0002602,2]
[356102356,1741908633858,-858.78360817,0.00026041,2]
[356102358,1741908633867,-159.66,0.0002614,2]
[356102360,1741908633876,-1414.35120773,0.00026157,2]
[356102362,1741908633886,-1551.7451,0.00026167,2]
[356102364,1741908633895,-8486.10724638,0.00026167,2]
[356102366,1741908633904,-612.9964,0.00026167,2]
[356102367,1741908633913,-423.15840928,0.00026175,2]
[356102369,1741908633923,-1399.4837,0.00026176,2]
[356102371,1741908633932,-603.79,0.00026176,3]
[356102373,1741908633942,-824.36,0.00026176,3]
[356102375,1741908633951,-500.0,0.00026176,3]
[356102377,1741908633961,-1778.11,0.00026176,3]
[356102379,1741908633971,-1866.58,0.00026176,3]
[356102381,1741908633980,-506.41207581,0.00026176,3]
[356102383,1741908633990,-1139.75,0.00026176,3]
[356102385,1741908633999,-1861.53,0.00026176,3]
[356102386,1741908634008,-2328.08,0.00026176,3]
[356102388,1741908634020,-690.77,0.00026176,3]
[356102390,1741908634030,-560.19,0.00026176,3]
[356102392,1741908634041,-3176.41,0.00026176,3]
[356102394,1741908634050,-508.61585526,0.00026176,3]
[356102396,1741908634059,-844.26,0.00026176,3]
[356102398,1741908634071,-758.82,0.00026176,3]
[356102400,1741908634080,-657.4,0.00026176,3]
[356102401,1741908634090,-1249.49,0.00026176,3]
[356102403,1741908634100,-665.7611,0.00026176,2]
[356102405,1741908634109,-4745.9708,0.00026177,2]
[356102407,1741908634119,-38389.1042,0.00026177,2]
[356102409,1741908634129,-622.008004,0.00026177,7]
[356102411,1741908634138,-622.008004,0.00026177,7]
[356102413,1741908634147,-151.0,0.00026177,7]
[356102415,1741908634157,-151.0,0.00026177,7]
[356102416,1741908634166,-151.0,0.00026177,7]
[356102418,1741908634176,-464.348144,0.00026177,7]
[356102420,1741908634186,-151.0,0.00026177,7]
[356102422,1741908634196,-464.348144,0.00026177,7]
[356102424,1741908634206,-151.0,0.00026177,7]
[356102426,1741908634215,-151.0,0.00026177,7]
[356102428,1741908634224,-1000.0,0.00026179,2]
[356102429,1741908634234,-1619.44774361,0.0002618,2]
[356102431,1741908634243,-858.78360817,0.00026182,2]
[356102433,1741908634253,-603.79,0.00026203,3]
[356102435,1741908634263,-824.36,0.00026203,3]
[356102437,1741908634273,-500.0,0.00026203,3]
[356102439,1741908634282,-1778.11,0.00026203,3]
[356102441,1741908634292,-1866.58,0.00026203,3]
[356102443,1741908634302,-1139.75,0.00026203,3]
[356102444,1741908634314,-1861.53,0.00026203,3]
[356102446,1741908634324,-2328.08,0.00026203,3]
[356102448,1741908634333,-690.77,0.00026203,3]
[356102450,1741908634344,-560.19,0.00026203,3]
[356102452,1741908634355,-3176.41,0.00026203,3]
[356102454,1741908634364,-844.26,0.00026203,3]
[356102456,1741908634374,-758.82,0.00026203,3]
[356102457,1741908634383,-657.4,0.00026203,3]
[356102459,1741908634393,-1249.49,0.00026203,3]
[356102461,1741908634403,-1414.35120773,0.00026221,2]
[356102463,1741908634413,-603.79,0.00026231,3]
[356102465,1741908634422,-824.36,0.00026231,3]
[356102467,1741908634431,-500.0,0.00026231,3]
[356102468,1741908634441,-1778.11,0.00026231,3]
[356102469,1741908634450,-1866.58,0.00026231,3]
[356102470,1741908634460,-1139.75,0.00026231,3]
[356102471,1741908634469,-1861.53,0.00026231,3]
[356102472,1741908634478,-2328.08,0.00026231,3]
[356102473,1741908634488,-690.77,0.00026231,3]
[356102474,1741908634497,-560.19,0.00026231,3]
[356102475,1741908634506,-3176.41,0.00026231,3]
[356102476,1741908634515,-844.26,0.00026231,3]
[356102477,1741908634525,-758.82,0.00026231,3]
[356102478,1741908634535,-657.4,0.00026231,3]
[356102479,1741908634544,-1249.49,0.00026231,3]
[356102480,1741908634553,-5657.40483092,0.00026251,2]
[356102481,1741908634563,-11314.8096618,0.00026255,2]
[356102482,1741908634573,-2692.8554,0.00026256,2]
[356102483,1741908634582,-203.91323769,0.00026256,2]
[356102484,1741908634591,-622.008004,0.00026256,7]
[356102485,1741908634601,-622.008004,0.00026256,7]
[356102486,1741908634610,-151.0,0.00026256,7]
[356102487,1741908634619,-1414.35120773,0.00026256,2]
[356102488,1741908634629,-1674.733,0.00026258,12]
[356102489,1741908634638,-603.79,0.00026258,3]
[356102490,1741908634647,-824.36,0.00026258,3]
[356102491,1741908634656,-500.0,0.00026258,3]
[356102492,1741908634666,-1778.11,0.00026258,3]
[356102493,1741908634675,-1866.58,0.00026258,3]
[356102494,1741908634683,-1139.75,0.00026258,3]
[356102496,1741908634693,-1861.53,0.00026258,3]
[356102498,1741908634702,-2328.08,0.00026258,3]
[356102500,1741908634711,-690.77,0.00026258,3]
[356102502,1741908634720,-560.19,0.00026258,3]
[356102504,1741908634730,-3176.41,0.00026258,3]
[356102506,1741908634739,-844.26,0.00026258,3]
[356102508,1741908634748,-758.82,0.00026258,3]
[356102510,1741908634757,-657.4,0.00026258,3]
[356102512,1741908634767,-1249.49,0.00026258,3]
[356102514,1741908634776,-25804.74,0.00026261,2]
[356102516,1741908634786,-54098.0,0.00026265,21]
[356102517,1741908634796,-622.008004,0.00026265,7]
[356102519,1741908634805,-622.008004,0.00026265,7]
[356102521,1741908634816,-187.9107,0.00026265,7]
[356102523,1741908634826,-151.0,0.00026265,7]
[356102525,1741908634835,-151.0,0.00026265,7]
[356102527,1741908634844,-464.348144,0.00026265,7]
[356102529,1741908634854,-151.0,0.00026265,7]
[356102531,1741908634863,-464.348144,0.00026265,7]
[356102533,1741908634872,-151.0,0.00026265,7]
[356102535,1741908634881,-235.985285,0.00026265,7]
[356102537,1741908634891,-9184.04977962,0.00026265,2]
[356102539,1741908634900,-38520.89794301,0.00026266,2]
[356102571,1741908635642,-3867.48067032,0.00026266,2]
[356102573,1741908637972,-303.94602265,0.00024999,3]
[356102574,1741908637983,-550.34850008,0.00024999,3]
[356102575,1741908638026,-557.91029838,0.00024999,3]
[356102582,1741908640291,-374.76517889,0.00024999,3]
[356102583,1741908640301,-500.0,0.00024999,3]
[356102584,1741908640310,-377.1306711,0.00024999,3]
[356102585,1741908640325,-122.8693289,0.00024999,3]
[356102586,1741908640335,-500.0,0.00024999,3]
[356102587,1741908640345,-1272.98067065,0.00025,21]
[356102588,1741908640443,-300.04138515,0.00025,21]
[356102618,1741908643160,-25668.39166618,0.00025,21]
[356102621,1741908643946,-17415.86531475,0.00025,21]
[356102622,1741908643958,-398.6163417,0.00025,21]
[356102627,1741908646385,-500.0,0.00024999,3]
[356102628,1741908646395,-208.91030567,0.00025,21]
[356102629,1741908646418,-1118.93,0.00024999,3]
[356102630,1741908646427,-17918.16264522,0.00025,21]
[356102631,1741908646446,-7787.04975629,0.00025,21]
[356102632,1741908646457,-66608.90595464,0.00025,21]
[356102633,1741908646466,-448.813592,0.00025,7]
[356102634,1741908646475,-448.813592,0.00025,7]
[356102635,1741908646484,-151.0,0.00025,7]
[356102636,1741908646494,-1786.97,0.00025027,3]
[356102637,1741908646503,-500.0,0.00025027,3]
[356102638,1741908646512,-500.0,0.00025027,3]
[356102639,1741908646520,-500.0,0.00025027,3]
[356102640,1741908646529,-500.0,0.00025027,3]
[356102641,1741908646539,-500.0,0.00025054,3]
[356102642,1741908646548,-500.0,0.00025054,3]
[356102643,1741908646557,-1786.97,0.00025054,3]
[356102644,1741908646566,-572.64474373,0.00025054,3]
[356102645,1741908646577,-500.0,0.00025054,3]
[356102646,1741908646586,-500.0,0.00025054,3]
[356102647,1741908646596,-500.0,0.00025081,3]
[356102648,1741908646605,-1786.97,0.00025081,3]
[356102649,1741908646614,-500.0,0.00025081,3]
[356102650,1741908646624,-500.0,0.00025081,3]
[356102651,1741908646633,-500.0,0.00025109,3]
[356102652,1741908646642,-500.0,0.00025109,3]
[356102653,1741908646651,-1786.97,0.00025109,3]
[356102654,1741908646660,-500.0,0.00025109,3]
[356102655,1741908646670,-500.0,0.00025136,3]
[356102656,1741908646680,-500.0,0.00025136,3]
[356102657,1741908646689,-1786.97,0.00025136,3]
[356102658,1741908646698,-500.0,0.00025136,3]
[356102659,1741908646707,-500.0,0.00025164,3]
[356102660,1741908646716,-500.0,0.00025164,3]
[356102661,1741908646725,-1786.97,0.00025164,3]
[356102662,1741908646734,-500.0,0.00025164,3]
[356102663,1741908646743,-500.0,0.00025191,3]
[356102664,1741908646752,-500.0,0.00025191,3]
[356102665,1741908646762,-1786.97,0.00025191,3]
[356102666,1741908646771,-572.73865578,0.00025191,3]
[356102667,1741908646781,-500.0,0.00025218,3]
[356102668,1741908646791,-500.0,0.00025218,3]
[356102669,1741908646799,-1786.97,0.00025218,3]
[356102670,1741908646809,-566.34261151,0.00025246,3]
[356102671,1741908646818,-500.0,0.00025246,3]
[356102672,1741908646829,-1786.97,0.00025246,3]
[356102673,1741908646838,-500.0,0.00025273,3]
[356102674,1741908646848,-1786.97,0.00025273,3]
[356102675,1741908646857,-500.0,0.00025301,3]
[356102676,1741908646867,-1786.97,0.00025301,3]
[356102677,1741908646876,-500.0,0.00025328,3]
[356102678,1741908646886,-1786.97,0.00025328,3]
[356102679,1741908646895,-500.0,0.00025355,3]
[356102680,1741908646904,-1187.10085034,0.00025355,3]
[356102681,1741908646932,-500.0,0.00025081,3]
[356102682,1741908646942,-599.86914966,0.00025355,3]
[356102683,1741908646952,-500.0,0.00025383,3]
[356102684,1741908646962,-1786.97,0.00025383,3]
[356102685,1741908646972,-500.0,0.0002541,3]
[356102686,1741908646981,-1113.79897749,0.0002541,3]
[356102687,1741908646992,-673.17102251,0.0002541,3]
[356102688,1741908647001,-108.57898249,0.00025438,3]
[356102697,1741909234720,-290.42254486,0.00022252,2]
[356102914,1741909832424,-719.43745514,0.00022252,2]
[356102915,1741909832434,-150.0,0.0002313,2]
[356102916,1741909832444,-331.88,0.00023721,120]
[356102917,1741909832453,-169.99,0.00023786,2]
[356102918,1741909832463,-304.45,0.00023976,2]
[356102919,1741909832472,-240.13,0.00023976,2]
[356102920,1741909832482,-250.0,0.00024008,2]
[356102921,1741909832491,-495.8,0.00024024,2]
[356102922,1741909832502,-1000.0,0.00024052,2]
[356102923,1741909832511,-150.0,0.00024164,2]
[356102924,1741909832520,-399.66,0.00024186,30]
[356102925,1741909832530,-7039.12,0.00024186,5]
[356102926,1741909832540,-152.52,0.00024186,2]
[356102927,1741909832549,-241.51,0.00024186,2]
[356102928,1741909832559,-2027.52,0.00024186,2]
[356102929,1741909832569,-999.99,0.00024186,2]
[356102931,1741909832579,-1423.66,0.00024186,2]
[356102933,1741909832589,-187.02,0.00024361,2]
[356102935,1741909832599,-300.0,0.000244,8]
[356102937,1741909832608,-150.0,0.00024478,2]
[356102939,1741909832618,-550.0,0.00024478,2]
[356102940,1741909832627,-150.0,0.00024478,2]
[356102942,1741909832636,-550.0,0.00024478,2]
[356102944,1741909832646,-700.0,0.000245,8]
[356102946,1741909832656,-1009.86,0.00024516,2]
[356102948,1741909832665,-170.25,0.00024531,2]
[356102950,1741909832675,-1000.0,0.000246,8]
[356102952,1741909832684,-1400.0,0.000247,9]
[356102954,1741909832694,-301.02,0.00024716,2]
[356102956,1741909832703,-187.02,0.00024767,2]
[356102958,1741909832712,-572.4486,0.00024799,2]
[356102960,1741909832721,-150.0,0.00024799,2]
[356102962,1741909832731,-1800.0,0.000248,9]
[356102964,1741909832740,-438.45101399,0.00024899,2]
[356102966,1741909832749,-300.0,0.000249,9]
[356102968,1741909832758,-203.88382571,0.000249,4]
[356102970,1741909832768,-2343.39047707,0.00024927,2]
[356102972,1741909832777,-207.26659453,0.00024938,2]
[356102974,1741909832786,-438.45101399,0.00024939,2]
[356102976,1741909832795,-2343.39047706,0.00024976,2]
[356102978,1741909832805,-438.45101399,0.00024978,2]
[356102981,1741909832814,-8481.05947865,0.00024989,2]
[356102984,1741909832823,-1836.837,0.00024998,8]
[356102987,1741909832832,-175.916,0.00024998,8]
[356102990,1741909832841,-1612.27,0.00024998,3]
[356102993,1741909832850,-503.16,0.00024998,3]
[356102996,1741909832859,-686.97,0.00024998,3]
[356102998,1741909832869,-1023.55,0.00024998,3]
[356103000,1741909832878,-500.0,0.00024998,3]
[356103003,1741909832887,-2081.77,0.00024998,3]
[356103006,1741909832896,-1551.28,0.00024998,3]
[356103009,1741909832905,-575.64,0.00024998,3]
[356103012,1741909832914,-500.0,0.00024998,3]
[356103015,1741909832923,-694.85,0.00024998,3]
[356103017,1741909832932,-2647.01,0.00024998,3]
[356103020,1741909832942,-703.55,0.00024998,3]
[356103023,1741909832951,-1122.02,0.00024998,3]
[356103026,1741909832960,-500.0,0.00024998,3]
[356103029,1741909832969,-547.84,0.00024998,3]
[356103032,1741909832982,-500.0,0.00024998,3]
[356103035,1741909832991,-685.17,0.00024998,3]
[356103038,1741909833000,-760.24,0.00024998,3]
[356103041,1741909833009,-1000.0,0.00024998,2]
[356103044,1741909833019,-1000.0,0.00024998,2]
[356103047,1741909833028,-1000.0,0.00024998,2]
[356103050,1741909833039,-1000.0,0.00024998,2]
[356103052,1741909833049,-1787.64,0.00024999,3]
[356103054,1741909833058,-500.0,0.00024999,3]
[356103056,1741909833067,-500.0,0.00024999,3]
[356103058,1741909833078,-500.0,0.00024999,3]
[356103060,1741909833088,-1821.49,0.00024999,3]
[356103061,1741909833097,-500.0,0.00024999,3]
[356103062,1741909833106,-534.21,0.00024999,3]
[356103063,1741909833116,-500.0,0.00024999,3]
[356103064,1741909833125,-500.0,0.00024999,3]
[356103065,1741909833134,-500.0,0.00024999,3]
[356103066,1741909833144,-500.0,0.00024999,3]
[356103067,1741909833153,-721.07,0.00024999,3]
[356103068,1741909833162,-1083.07,0.00024999,3]
[356103069,1741909833171,-500.0,0.00024999,3]
[356103070,1741909833181,-835.2,0.00024999,3]
[356103071,1741909833191,-500.0,0.00024999,3]
[356103072,1741909833200,-640.39,0.00024999,3]
[356103073,1741909833210,-500.0,0.00024999,3]
[356103074,1741909833219,-1649.68,0.00024999,3]
[356103075,1741909833229,-500.0,0.00024999,3]
[356103076,1741909833237,-602.71,0.00024999,3]
[356103077,1741909833247,-500.0,0.00024999,3]
[356103078,1741909833257,-500.0,0.00024999,3]
[356103079,1741909833266,-500.0,0.00024999,3]
[356103080,1741909833276,-500.0,0.00024999,3]
[356103081,1741909833286,-500.0,0.00024999,3]
[356103082,1741909833295,-500.0,0.00024999,3]
[356103083,1741909833305,-500.0,0.00024999,3]
[356103084,1741909833314,-500.0,0.00024999,3]
[356103085,1741909833323,-500.0,0.00024999,3]
[356103086,1741909833333,-500.0,0.00024999,3]
[356103087,1741909833342,-500.0,0.00024999,3]
[356103102,1741909833551,-500.0,0.00024999,3]
[356103104,1741909833561,-500.0,0.00024999,3]
[356103106,1741909833570,-500.0,0.00024999,3]
[356103108,1741909833580,-717.27,0.00024999,3]
[356103110,1741909833590,-938.73,0.00024999,3]
[356103111,1741909833599,-1058.89,0.00024999,3]
[356103113,1741909833608,-942.53,0.00024999,3]
[356103115,1741909833618,-578.57,0.00024999,3]
[356103117,1741909833628,-500.0,0.00024999,3]
[356103119,1741909833638,-500.0,0.00024999,3]
[356103121,1741909833647,-909.28,0.00024999,3]
[356103123,1741909833657,-618.61,0.00024999,3]
[356103125,1741909833668,-500.0,0.00024999,3]
[356103127,1741909833677,-500.0,0.00024999,3]
[356103129,1741909833688,-500.0,0.00024999,3]
[356103131,1741909833699,-500.0,0.00024999,3]
[356103133,1741909833709,-500.0,0.00024999,3]
[356103135,1741909833719,-500.0,0.00024999,3]
[356103137,1741909833728,-500.0,0.00024999,3]
[356103139,1741909833738,-933.18,0.00024999,3]
[356103141,1741909833747,-500.0,0.00024999,3]
[356103143,1741909833757,-500.0,0.00024999,3]
[356103144,1741909833766,-610.2,0.00024999,3]
[356103146,1741909833776,-500.0,0.00024999,3]
[356103148,1741909833786,-500.0,0.00024999,3]
[356103150,1741909833796,-500.0,0.00024999,3]
[356103152,1741909833806,-500.0,0.00024999,3]
[356103154,1741909833815,-573.84415994,0.00024999,3]
[356103156,1741909833825,-500.0,0.00024999,3]
[356103158,1741909833834,-500.0,0.00024999,3]
[356103160,1741909833844,-500.0,0.00024999,3]
[356103162,1741909833854,-605.40459044,0.00024999,3]
[356103164,1741909833864,-500.0,0.00024999,3]
[356103166,1741909833874,-500.0,0.00024999,3]
[356103167,1741909833884,-500.0,0.00024999,3]
[356103169,1741909833894,-549.37871623,0.00024999,3]
[356103171,1741909833903,-500.0,0.00024999,3]
[356103173,1741909833913,-536.74572221,0.00024999,3]
[356103175,1741909833923,-500.0,0.00024999,3]
[356103177,1741909833933,-579.60447823,0.00024999,3]
[356103179,1741909833943,-1597.02,0.00024999,3]
[356103181,1741909833953,-500.0,0.00024999,3]
[356103183,1741909833963,-500.0,0.00024999,3]
[356103185,1741909833973,-500.0,0.00024999,3]
[356103187,1741909833983,-500.01039156,0.00024999,3]
[356103189,1741909833994,-1208.71,0.00024999,3]
[356103191,1741909834003,-500.0,0.00024999,3]
[356103192,1741909834014,-500.0,0.00024999,3]
[356103194,1741909834024,-500.0,0.00024999,3]
[356103196,1741909834033,-961.24,0.00024999,3]
[356103198,1741909834043,-500.0,0.00024999,3]
[356103200,1741909834053,-500.0,0.00024999,3]
[356103202,1741909834062,-500.0,0.00024999,3]
[356103204,1741909834072,-945.98,0.00024999,3]
[356103206,1741909834083,-500.0,0.00024999,3]
[356103208,1741909834093,-500.0,0.00024999,3]
[356103210,1741909834103,-500.0,0.00024999,3]
[356103212,1741909834113,-500.0,0.00024999,3]
[356103214,1741909834123,-500.0,0.00024999,3]
[356103216,1741909834132,-500.0,0.00024999,3]
[356103218,1741909834143,-500.0,0.00024999,3]
[356103220,1741909834153,-599.05,0.00024999,3]
[356103222,1741909834162,-500.0,0.00024999,3]
[356103224,1741909834171,-500.0,0.00024999,3]
[356103226,1741909834181,-500.0,0.00024999,3]
[356103228,1741909834191,-500.0,0.00024999,3]
[356103230,1741909834201,-500.0,0.00024999,3]
[356103232,1741909834211,-500.0,0.00024999,3]
[356103234,1741909834220,-524.04,0.00024999,3]
[356103236,1741909834230,-500.0,0.00024999,3]
[356103238,1741909834240,-1162.99,0.00024999,3]
[356103240,1741909834250,-500.0,0.00024999,3]
[356103242,1741909834260,-500.0,0.00024999,3]
[356103243,1741909834270,-1064.48,0.00024999,3]
[356103245,1741909834280,-500.0,0.00024999,3]
[356103247,1741909834290,-500.0,0.00024999,3]
[356103249,1741909834300,-500.0,0.00024999,3]
[356103251,1741909834309,-626.96559685,0.00024999,3]
[356103253,1741909834319,-1104.79,0.00024999,3]
[356103255,1741909834329,-500.0,0.00024999,3]
[356103257,1741909834338,-1347.3,0.00024999,2]
[356103259,1741909834348,-500.0,0.00024999,3]
[356103261,1741909834357,-500.0,0.00024999,3]
[356103263,1741909834367,-500.0,0.00024999,3]
[356103265,1741909834377,-500.0,0.00024999,3]
[356103267,1741909834386,-500.0,0.00024999,3]
[356103269,1741909834396,-1278.64,0.00024999,3]
[356103271,1741909834405,-1177.15,0.00024999,3]
[356103273,1741909834415,-500.0,0.00024999,3]
[356103275,1741909834429,-1471.45,0.00024999,3]
[356103277,1741909834439,-500.0,0.00024999,3]
[356103279,1741909834449,-500.0,0.00024999,3]
[356103281,1741909834459,-500.0,0.00024999,3]
[356103283,1741909834471,-500.0,0.00024999,3]
[356103285,1741909834480,-500.0,0.00024999,3]
[356103286,1741909834490,-1032.31,0.00024999,3]
[356103288,1741909834500,-500.0,0.00024999,3]
[356103290,1741909834509,-1030.03,0.00024999,3]
[356103291,1741909834519,-500.0,0.00024999,3]
[356103293,1741909834529,-500.0,0.00024999,3]
[356103294,1741909834539,-500.0,0.00024999,3]
[356103295,1741909834548,-500.0,0.00024999,3]
[356103296,1741909834558,-583.44,0.00024999,3]
[356103297,1741909834568,-500.0,0.00024999,3]
[356103298,1741909834577,-500.0,0.00024999,3]
[356103299,1741909834587,-531.32,0.00024999,3]
[356103300,1741909834597,-500.0,0.00024999,3]
[356103301,1741909834606,-500.0,0.00024999,3]
[356103302,1741909834615,-500.0,0.00024999,3]
[356103303,1741909834625,-500.0,0.00024999,3]
[356103304,1741909834635,-665.05,0.00024999,3]
[356103305,1741909834645,-500.0,0.00024999,3]
[356103306,1741909834655,-500.0,0.00024999,3]
[356103307,1741909834664,-500.0,0.00024999,3]
[356103308,1741909834673,-197.95125318,0.00024999,3]
[356103309,1741909834683,-500.0,0.00024999,3]
[356103310,1741909834693,-1399.34,0.00024999,3]
[356103311,1741909834702,-500.0,0.00024999,3]
[356103312,1741909834712,-500.0,0.00024999,3]
[356103313,1741909834721,-151.0,0.00024999,7]
[356103314,1741909834731,-151.0,0.00024999,7]
[356103315,1741909834740,-151.0,0.00024999,7]
[356103316,1741909834750,-151.0,0.00024999,7]
[356103317,1741909834759,-151.0,0.00024999,7]
[356103318,1741909834768,-151.0,0.00024999,7]
[356103319,1741909834777,-151.0,0.00024999,7]